Cogmind - Beta 15 @@@ ROGUE MODE // 2025.07.31 @ 09:08:09 Player: a.r.i. Result: Destroyed by S-10 Pest with Light Assault Rifle Performance ------------- Evolutions (1) 500 Regions Visited (2) 400 Robots Destroyed (11) 55 Value Destroyed (334) 334 Prototype IDs (1) 20 Alien Tech Used (0) 0 Bonus (0) 0 TOTAL SCORE: 1309 Bonus ------- None Cogmind --------- Core Integrity 0/400 Matter 13/300 Energy 100/100 System Corruption 0% Temperature Cool (0) Movement Core (200) Ox3 Location -9/Materials Parts ------- > --- POWER (1) -------- (None) > --- PROPULSION (4) --- (None) > --- UTILITY (2) ------ Heat Sink Medium Storage Unit > --- WEAPON (2) ------- (None) > --- INVENTORY (10) --- Medium Storage Unit Structural Scanner System Shield Assault Rifle Peak State ------------ > --- POWER ------------ Light Ion Engine > --- PROPULSION ------- Aluminum Leg Aluminum Leg > --- UTILITY ---------- Medium Storage Unit Reaction Control System > --- WEAPON ----------- Improved Medium Laser Assault Rifle > --- INVENTORY -------- Medium Storage Unit Structural Scanner Improved Weapon Shielding System Shield Rocket Launcher [Rating: 12] Favorites ----------- Power Light Ion Engine Engine Light Ion Engine Propulsion Aluminum Leg Leg Aluminum Leg Utility Medium Storage Unit Device Heat Sink Storage Medium Storage Unit Processor Visual Processing Unit Protection Improved Weapon Shielding Weapon Autogun Energy Gun Improved Medium Laser Ballistic Gun Autogun Launcher Rocket Launcher Build | -11 -10 -9 ------- Run | Yrd Mat Mat Slots Evolved 2 | . . 2 Power . | . . . Propulsion 2 | . . 2 Utility . | . . . Weapon . | . . . Parts Attached 23 | 7 7 9 Power 3 | 1 1 1 Engine 3 | 1 1 1 Core . | . . . Reactor . | . . . Propulsion 4 | 2 1 1 Treads . | . . . Leg 4 | 2 1 1 Wheel . | . . . Hover . | . . . Flight . | . . . Utility 7 | 1 2 4 Device 2 | . . 2 Storage 3 | 1 1 1 Processor 1 | . 1 . Hackware . | . . . Protection 1 | . . 1 Artifact . | . . . Weapon 9 | 3 3 3 Energy Gun 2 | 1 . 1 Energy Cannon . | . . . Ballistic Gun 4 | 2 2 . Ballistic Cannon . | . . . Launcher 3 | . 1 2 Special Weapon . | . . . Impact Weapon . | . . . Slashing Weapon . | . . . Piercing Weapon . | . . . Special Melee Weapon . | . . . Unidentified Prototypes 1 | . . 1 Parts Lost 15 | . 7 8 Power 3 | . 2 1 Propulsion 4 | . 2 2 Utility 2 | . . 2 Weapon 6 | . 3 3 Highest Loss Streak 7 | . 7 5 To Critical Strikes 1 | . 1 . Average Backups 6 | 3 7 5 Power . | . 1 . Propulsion 1 | 2 1 . Utility 2 | . 1 3 Weapon 2 | . 3 1 Tool/Special . | . . . Unused Backups 7 | . 5 2 Power . | . . . Propulsion 4 | . 4 . Utility 2 | . . 2 Weapon 1 | . 1 . Tool/Special . | . . . Average Slot Usage (%) 74 | . 90 59 Engine 10 | . 13 8 Leg 19 | . 26 12 Device 2 | . . 4 Storage 12 | . 14 11 Processor 4 | . 7 . Protection 2 | . . 5 Energy Gun 1 | . . 2 Ballistic Gun 13 | . 25 2 Launcher 7 | . 2 11 Peak Build Rating 12 | 6 11 12 Average Rating 8 | 4 9 8 On Entrance 3 | . 6 5 Naked Turns . | . . . Heaviest Build 22 | 12 19 22 Greatest Support 20 | 20 20 20 Greatest Overweight (x) 7 | 1 1 7 Average Overweight (x) . | . . 1 Largest Inventory Capacity 10 | 8 10 10 Average Capacity 9 | 7 9 10 Most Carried 10 | 7 10 8 Average Carried 6 | 4 7 5 Final Capacity 10 | 8 10 10 Final Carried 6 | 6 6 4 Class Distribution -------------------- 100% | Mutant Dominant Class ---------------- Mutant | -10/Materials Mutant | -9/Materials Resources | -11 -10 -9 ----------- Run | Yrd Mat Mat Matter Collected 329 | 182 61 86 Remotely . | . . . Salvage Created 371 | . 315 56 Parts 18 | . 17 1 Haulers Intercepted . | . . . Recyclers Shooed . | . . . Parts Field Recycled . | . . . Retrieved Matter . | . . . Parts Self-Destructed . | . . . Prevented . | . . . Kills | -11 -10 -9 ------- Run | Yrd Mat Mat Combat Hostiles Destroyed 8 | . 5 3 Guns 2 | . 2 . AOE 6 | . 3 3 Classes Destroyed 4 | . 3 1 Builder 1 | . 1 . Recycler 2 | . 2 . Grunt 7 | . 5 2 Brawler 1 | . . 1 Best Kill Streak 7 | . 7 3 Combat Bots Only 4 | . 4 3 Max Kills in Single Turn 3 | . 3 1 Gunslinging . | . . . Exploded 2 | . 2 1 Melee . | . . . Uniques/NPCs Destroyed . | . . . Combat | -11 -10 -9 -------- Run | Yrd Mat Mat Hostile Shots Fired 267 | . 126 141 Missed 76 | . 35 41 Hits 191 | . 91 100 Projectile 191 | . 91 100 Critical Strikes 2 | . 2 . Damage Taken 1917 | . 919 998 Core 637 | . 231 406 Absorbed by Shields . | . . . Redirected to Shielding 104 | . . 104 Core Remaining (%) 53 | 100 7 . Volleys Fired 21 | . 15 6 Largest 2 | . 2 2 Hottest 63 | . 56 63 Shots Fired 40 | . 28 12 Gun 27 | . 27 . Cannon . | . . . Launcher 13 | . 1 12 Special . | . . . Kinetic 27 | . 27 . Thermal . | . . . Explosive 13 | . 1 12 Electromagnetic . | . . . Robot Hit Streak 9 | . 5 9 Robot Miss Streak 7 | . 7 2 Penetration Max . | . . . Secondary Targets . | . . . Shots Hit Robots 21 | . 12 9 Core Hits 17 | . 10 7 Critical Kills . | . . . Critical Parts Destroyed . | . . . Critical Strikes . | . . . Melee Attacks . | . . . Impact . | . . . Slashing . | . . . Piercing . | . . . Sneak Attacks . | . . . Combat Hostiles . | . . . Follow-up Attacks . | . . . Damage Inflicted 1246 | 6 713 527 Guns 182 | . 182 . Cannons . | . . . Explosions 1058 | . 531 527 Melee . | . . . Ramming 6 | 6 . . Kinetic 182 | . 182 . Thermal 423 | . 423 . Explosive 635 | . 108 527 Electromagnetic . | . . . Impact . | . . . Slashing . | . . . Piercing . | . . . Highest Corruption . | . . . Average Corruption . | . . . Corruption Purged . | . . . Corruption Blocked . | . . . Overload Shots . | . . . Overflow Damage 94 | . 86 8 Projectiles . | . . . Explosions 94 | . 86 8 Melee . | . . . Knockbacks . | . . . Impact . | . . . Kinetic . | . . . Secondary . | . . . Self-Inflicted Damage 142 | . 87 55 Shots 5 | . 2 3 Rammed . | . . . Targets Rammed 1 | 1 . . Kicked 1 | 1 . . Crushed . | . . . Highest Temperature 86 | . 86 4 Average Temperature 37 | . 42 3 Received Heat Transfer 489 | . 183 306 Siege Activations . | . . . Martial Activations . | . . . Shielding Activations . | . . . Robots Disrupted . | . . . Combat Hostiles . | . . . Robots Corrupted . | . . . Combat Hostiles . | . . . Parts Fried . | . . . Impact Corruptions . | . . . Robots Melted . | . . . Combat Hostiles . | . . . Parts Melted 1 | . 1 . Heat Transferred 250 | . 250 . Parts Sabotaged . | . . . Parts Stolen . | . . . Parts Stripped . | . . . Power Chain Reactions . | . . . Alert | -11 -10 -9 ------- Run | Yrd Mat Mat Maximum Alert Level . | . . . Low Security (%) 100 | 100 100 100 Level 1 . | . . . Level 2 . | . . . Level 3 . | . . . Level 4 . | . . . Level 5 . | . . . High Security . | . . . Max Security . | . . . Peak Influence 104 | . 104 88 Initial 18 | . . 18 Average 22 | . 19 31 Influence Increases 326 | . 177 149 Destroy 0b10 Robot/C 160 | . 100 60 Destroy 0b10 Robot/NC 15 | . 15 . Destroy Leader 30 | . 20 10 Successful Hack 13 | . 13 . Disable Machine 45 | . 15 30 Destroy Structure 63 | . 14 49 Influence Decreases 326 | . 133 193 Entered New Map 26 | . . 26 Time Decay 181 | . 63 118 Lost Part 119 | . 70 49 Squads Dispatched 3 | . 3 . Investigation 1 | . 1 . Extermination . | . . . Reinforcement 2 | . 2 . Assault . | . . . Garrison . | . . . Intercept . | . . . Searches Triggered . | . . . Construction Impeded . | . . . Haulers Reinforced . | . . . Active Scanning Responses . | . . . Cargo Convoy Interrupts . | . . . Stealth | -11 -10 -9 --------- Run | Yrd Mat Mat Distress Signals 1 | . 1 . Communications Jammed . | . . . Distress Signals . | . . . Times Spotted 18 | . 9 9 Peak Tracking Total 6 | . 6 5 Tactical Retreats . | . . . Traps | -11 -10 -9 ------- Run | Yrd Mat Mat Traps Triggered 1 | . 1 . Indirectly . | . . . Trap Hack Attempts . | . . . Triggered . | . . . Disarmed . | . . . Reprogrammed . | . . . Reused . | . . . Traps Extracted . | . . . Installed . | . . . Triggered . | . . . Machines | -11 -10 -9 ---------- Run | Yrd Mat Mat Machines Disabled 3 | . 1 2 Max in Single Turn 1 | . 1 1 Machines Repaired . | . . . Machines Dismantled . | . . . Machines Sabotaged . | . . . Overloaded Fab Kills . | . . . Hacking | -11 -10 -9 --------- Run | Yrd Mat Mat Machines Accessed 2 | . 1 1 Terminals 2 | . 1 1 Fabricators . | . . . Repair Stations . | . . . Recycling Units . | . . . Scanalyzers . | . . . Garrison Access . | . . . Total Hacks 7 | . 6 1 Successful 4 | . 3 1 Failed 3 | . 3 . Catastrophic 1 | . 1 . Database Lockouts . | . . . Manual . | . . . Terminals 7 | . 6 1 Fabricators . | . . . Repair Stations . | . . . Recycling Units . | . . . Scanalyzers . | . . . Garrison Access . | . . . Terminal Hacks 4 | . 3 1 Record 3 | . 3 . Alert Level 1 | . . 1 Fabricator Hacks . | . . . Repair Station Hacks . | . . . Recycling Unit Hacks . | . . . Scanalyzer . | . . . Garrison Access Hacks . | . . . Unauthorized Hacks . | . . . Terminals . | . . . Fabricators . | . . . Repair Stations . | . . . Recycling Units . | . . . Scanalyzers . | . . . Garrison Access . | . . . Data Cores Recovered . | . . . Used . | . . . Hacking Detections 1 | . 1 . Full Trace Events . | . . . Feedback Events . | . . . Feedback Blocked . | . . . Robot Schematics Acquired . | . . . Robots Built . | . . . Authchips . | . . . Time . | . . . Total Robot Build Rating . | . . . Part Schematics Acquired . | . . . Parts Built . | . . . Authchips . | . . . Time . | . . . Total Part Build Rating . | . . . Parts Repaired . | . . . Time . | . . . Parts Recycled . | . . . Recycled Matter . | . . . Retrieved Matter . | . . . Retrieved Components . | . . . Parts Scanalyzed . | . . . Part Schematics Acquired . | . . . Parts Damaged . | . . . Bothacking | -11 -10 -9 ------------ Run | Yrd Mat Mat Used RIF Installer . | . . . Robots Hacked . | . . . Non-combat . | . . . Combat . | . . . Robot Hacks Applied . | . . . Relay Couplers Released . | . . . Fabnet Peak Effective % . | . . . Robots Rewired . | . . . Allies Hacked . | . . . Hacks Repelled . | . . . Allies | -11 -10 -9 -------- Run | Yrd Mat Mat Total Allies . | . . . Largest Group . | . . . Highest-Rated Group . | . . . Highest-Rated Ally . | . . . Total Orders . | . . . Ally Attacks . | . . . Total Damage . | . . . Kills . | . . . Allies Corrupted . | . . . Allies Melted . | . . . Intel | -11 -10 -9 ------- Run | Yrd Mat Mat Active Infowar (turns) 199 | . 185 14 Optics 199 | . 185 14 Robot Analysis Total . | . . . Derelict Logs Recovered . | . . . Drone Launches . | . . . Drone Recoveries . | . . . Exploration | -11 -10 -9 ------------- Run | Yrd Mat Mat Turns Passed 757 | 101 313 343 Spaces Moved 400 | 68 196 136 Core 26 | 6 . 20 Treads . | . . . Legs 374 | 62 196 116 Wheels . | . . . Hover . | . . . Flight . | . . . Fastest Speed 50 | 50 120 120 Average Speed 145 | 122 125 185 Slowest Speed 400 | 190 190 400 Overloaded Moves . | . . . Propulsion Burnouts . | . . . Robots Hopped . | . . . Potential Cave-ins . | . . . Cave-ins Triggered . | . . . Exploration Rate (%) 18 | 5 35 16 Regions Visited 2 Branch Regions . Pre-discovered Areas . | . . . Known Exits Taken . | . . . Unknown Exits Taken 2 | 1 1 . Scrap Searched . | . . . Spaces Dug . | . . . Terrain Destroyed 82 | . 23 59 Melee . | . . . Projectile . | . . . AOE 82 | . 23 59 Terrain Rammed . | . . . Walls Destroyed . | . . . Machines Disabled . | . . . Actions | -11 -10 -9 --------- Run | Yrd Mat Mat Total 545 | 84 245 216 Wait 62 | . 6 56 Move 399 | 68 195 136 Hop . | . . . Pick Up 24 | 8 11 5 Fast Attach 5 | 4 1 . Attach 18 | 3 6 9 Detach 5 | 1 2 2 Swap 2 | . 1 1 Drop 9 | . 8 1 Fire 21 | . 15 6 Melee . | . . . Ram . | . . . Kick . | . . . Crush . | . . . Escape Stasis . | . . . Rewire . | . . . Trap . | . . . Miscellaneous . | . . . Route ------- -11/Scrapyard -10/Materials -9/Materials History --------- Turn | Location | Event 2 | -11/Scrapyard | Met Revision 17 30 | -11/Scrapyard | Discovered new exit (range 15) 102 | -11/Scrapyard | Entered Materials 103 | -10/Materials | Met a group of wandering Federalists 316 | -10/Materials | Build established: Mutant 372 | -10/Materials | Core integrity fell below 50% 389 | -10/Materials | Core integrity fell below 20% 408 | -10/Materials | Discovered new exit (range 6) 415 | -10/Materials | Entered another Materials area 415 | -9/Materials | Evolved 2 slots: Propulsion x2 445 | -9/Materials | Lost 7 parts (2p2n3w) 688 | -9/Materials | Core integrity fell below 50% 709 | -9/Materials | Lost 5 parts (1p1n1u2w) 718 | -9/Materials | Core integrity fell below 20% 758 | -9/Materials | Destroyed by S-10 Pest with Light Assault Rifle Last Messages --------------- Atomic Centrifuge disabled. U-05 Engineer builds a Wall. Aluminum Leg destroyed. U-05 Engineer lays Concrete. U-05 Engineer builds a Wall. U-05 Engineer lays Concrete. U-05 Engineer builds a Wall. Lgt. Ion Engine destroyed. Imp. Weapon Shielding destroyed. K-01 Serf collects debris. Rocket Launcher destroyed. Grenade Launcher destroyed. K-01 Serf collects debris. R-06 Scavenger collects Lgt. Ion Engine. K-01 Serf collects debris. Connecting with Terminal... Current location identified: Materials >>Alert(Check) Current Alert Level: Low Security Imp. Medium Laser destroyed. Map ----- +----------------------------------------------------+ | ??????????????????????????????????????????? | | ??????????????????????????????????????????? | | ??????????????????????????????????????????? | | ??????????????????????????????????????????? | | ??????????????????????????????????????????? | | ??????????????????????????????????????????? | | ??????????????????????????????????????????? | | ??????????????????????????????????????????? | | ??????????????????????????????????????????? | | ??????????????????????????????????????????? | | ??????????????????????????????????????????? | | ??????????????????????????????????????????? | | ??????????????????????????? ????????????? | | ??????????????????????????? #???????????? | | ??????????????????????????? #???????????? | | ??????????????????????????? #???????????? | | ??????????????????????????? #???????????? | | ??????????????????????????? #???????????? | | ??????????????????????????? #???????????? | | ??????????????????????????# #???????????? | | ??????????????????????????# #???????????? | | ??????????????????????????# +???????????? | | ???????????????????######## #???????????? | | ???????????????????# # #???????????? | | ???????????????????# " # #???????????? | | ???????????????????# T@# #???????????? | | ???????????????????# " ss #???????????? | | ???????????????????# #g ##??????????? | | ???????????????????# #s T#??????????? | | ???????????????????######## ##??????????? | | ??????????????????????????# ##########??? | | ??????????????????????????# # #??? | | ????????????????###########% # #??? | | ?????????????? # #??? | | ?????????????? # #??? | | ?????????????? + #??? | | ??????????????############# # #??? | | ??????????????????????????### # #??? | | ????????????????????????????# # #??? | | ????????????????????????????# # #??? | | ????????????????????????????# ##/#######??? | | ????????????????????????????# #????????? | | ????????????????????????????# #????????? | | ????????????????????????????# #????????? | | ????????????????????????????# #######??? | | ????????????????????????????# #??? | | ????????????????????????????#### #??? | | ???????????????????????????????# #??? | | ???????????????????????????????# #??? | | ??????????????????????????????## ##### #??? | +----------------------------------------------------+ Best States ------------- Heat Dissipation 38 Energy Generation 10 Energy Capacity 125 Matter Stores 214 Matter Capacity 300 Sight Range 18 Terrain Scan Density 10 Weapon Shielding 66 Evasion (%) 63 Item Schematics ----------------- None Robot Schematics ------------------ None Fabricated ------------ Nothing Repaired ---------- Nothing Alien Tech Used ----------------- None Achievements -------------- Close Call Challenges ------------ None Game ------ Seed ParticleMicroLoader Manual? 0 Play Time 00:24:59 Cumulative 3.8 hours Start 2025.07.31 @ 08:38:57 End 2025.07.31 @ 09:08:09 Sessions 1 Manual Loads 0 Difficulty Rogue Special Mode None Game No. 6 Rogue 6 Adventurer 0 Explorer 0 Win Type - Total 0 Types 0/0/0/0/0/0/0/0/0/0 Lore% 1 Gallery% 5 Achievement% 5 Wizard Run 0 Options --------- Layout 2 ASCII 0 Keyboard 0 Movement Mouse Keybinds 0 Fullscreen 1 Font 24/Terminus Map View 50x49 Zoom Use 79% Tactical HUD 0 Map Filters NONE Filters NONE Steam 1 RUN: 4cf3f409-2d02-4977-a4ee-58f6b474ee93